Cogmind - Beta 16 @@@ ROGUE MODE // 2025.12.06 @ 19:34:03 Player: PopcornMaze Result: Destroyed by 0E-5DD(R) with Subdweller Machine Gun Performance ------------- Evolutions (0) 0 Regions Visited (3) 600 Robots Destroyed (41) 205 Value Destroyed (681) 681 Prototype IDs (0) 0 Alien Tech Used (0) 0 Bonus (0) 0 TOTAL SCORE: 1486 Bonus ------- None Cogmind --------- Core Integrity 0/250 Matter 294/300 Energy 250/250 System Corruption 0% Temperature Cool (0) Movement Rolling (145) Ox3 Location -10/Subcaves Parts ------- > --- POWER (1) -------- Ion Engine > --- PROPULSION (2) --- Compact Wheel > --- UTILITY (2) ------ High-capacity Storage Unit > --- WEAPON (2) ------- Assault Rifle Assault Rifle > --- INVENTORY (20) --- Ion Engine Light Ion Engine Light Treads Aluminum Leg Aluminum Leg Aluminum Leg Heat Sink Small Matter Pod (50) Medium Matter Pod (100) Visual Processing Unit Sensor Array Signal Interpreter Core Shielding Scrap Shield Particle Gun Particle Gun Light Assault Rifle Grenade Launcher Peak State ------------ > --- POWER ------------ Ion Engine > --- PROPULSION ------- Compact Wheel Compact Wheel > --- UTILITY ---------- High-capacity Storage Unit Core Shielding > --- WEAPON ----------- Assault Rifle Assault Rifle > --- INVENTORY -------- Ion Engine Light Ion Engine Light Treads Aluminum Leg Aluminum Leg Aluminum Leg Heat Sink Small Matter Pod Medium Matter Pod Visual Processing Unit Sensor Array Signal Interpreter Seismic Detector Particle Gun Particle Gun Light Assault Rifle Grenade Launcher [Rating: 9] Favorites ----------- Power Ion Engine Engine Ion Engine Propulsion Compact Wheel Treads Light Treads Wheel Compact Wheel Utility High-capacity Storage Unit Device Seismic Detector Storage High-capacity Storage Unit Protection Core Shielding Weapon Assault Rifle Energy Gun Small Laser Ballistic Gun Assault Rifle Launcher Grenade Launcher Build | -11 -10 -10 -10 ------- Run | Yrd Mat Min Sub Slots Evolved . | . . . . Power . | . . . . Propulsion . | . . . . Utility . | . . . . Weapon . | . . . . Parts Attached 16 | 7 4 5 . Power 2 | 1 . 1 . Engine 2 | 1 . 1 . Core . | . . . . Reactor . | . . . . Propulsion 4 | 2 . 2 . Treads 2 | 2 . . . Leg . | . . . . Wheel 2 | . . 2 . Hover . | . . . . Flight . | . . . . Utility 6 | 1 3 2 . Device 2 | . 1 1 . Storage 3 | 1 2 . . Processor . | . . . . Hackware . | . . . . Protection 1 | . . 1 . Artifact . | . . . . Weapon 4 | 3 1 . . Energy Gun 1 | 1 . . . Energy Cannon . | . . . . Ballistic Gun 2 | 2 . . . Ballistic Cannon . | . . . . Launcher 1 | . 1 . . Special Weapon . | . . . . Impact Weapon . | . . . . Slashing Weapon . | . . . . Piercing Weapon . | . . . . Special Melee Weapon . | . . . . Unidentified Prototypes . | . . . . Parts Lost 3 | . . 1 2 Power 1 | . . 1 . Propulsion 1 | . . . 1 Utility 1 | . . . 1 Weapon . | . . . . Highest Loss Streak 2 | . . 1 2 To Critical Strikes . | . . . . Average Backups 12 | 2 8 16 17 Power 1 | . 1 1 2 Propulsion 2 | 1 2 3 4 Utility 4 | . 3 6 7 Weapon 3 | . 2 3 4 Tool/Special . | . . . . Unused Backups 13 | . . . 13 Power 2 | . . . 2 Propulsion 3 | . . . 3 Utility 5 | . . . 5 Weapon 3 | . . . 3 Tool/Special . | . . . . Average Slot Usage (%) 97 | . 95 99 94 Engine 13 | . 14 13 14 Treads 13 | . 28 2 . Wheel 14 | . . 25 25 Device 4 | . . 5 11 Storage 21 | . 22 20 14 Ballistic Gun 27 | . 26 27 28 Peak Build Rating 9 | 6 8 9 9 Average Rating 7 | 5 6 8 8 On Entrance 5 | . 6 8 9 Avg Prop Armor Cover (%) . | . . . . Naked Turns . | . . . . Heaviest Build 52 | 12 52 51 50 Greatest Support 40 | 40 40 40 32 Greatest Overweight (x) 3 | 2 1 3 3 Average Overweight (x) . | . . 1 1 Largest Inventory Capacity 20 | 8 20 20 20 Average Capacity 16 | 7 13 20 20 Most Carried 19 | 4 12 17 19 Average Carried 12 | 2 8 16 18 Final Capacity 20 | 8 20 20 20 Final Carried 19 | 4 12 17 19 Class Distribution -------------------- 100% | Mutant Dominant Class ---------------- Mutant | -10/Materials Mutant | -10/Mines Mutant | -10/Subcaves Resources | -11 -10 -10 -10 ----------- Run | Yrd Mat Min Sub Matter Collected 1414 | 118 912 384 . Remotely . | . . . . Salvage Created 1466 | . 884 582 . Parts 83 | . 47 36 . Haulers Intercepted 1 | . 1 . . Recyclers Shooed 4 | . 2 2 . Parts Field Recycled . | . . . . Retrieved Matter . | . . . . Parts Self-Destructed . | . . . . Prevented . | . . . . Parts Restored . | . . . . Kills | -11 -10 -10 -10 ------- Run | Yrd Mat Min Sub Combat Hostiles Destroyed 21 | . 13 8 . Guns 21 | . 13 8 . Classes Destroyed 9 | . 8 1 . Worker 5 | . 4 1 . Builder 1 | . 1 . . Tunneler 2 | . . 2 . Hauler 1 | . 1 . . Recycler 8 | . 5 3 . Mechanic 1 | . 1 . . Watcher 2 | . 2 . . Swarmer 12 | . 9 3 . Grunt 9 | . 4 5 . Best Kill Streak 7 | . 7 3 . Combat Bots Only 6 | . 6 3 . Max Kills in Single Turn 2 | . 2 2 . Gunslinging 1 | . 1 1 . Exploded . | . . . . Melee . | . . . . Uniques/NPCs Destroyed . | . . . . Combat | -11 -10 -10 -10 -------- Run | Yrd Mat Min Sub Hostile Shots Fired 86 | . 51 31 4 Missed 28 | . 18 9 1 Hits 58 | . 33 22 3 Projectile 58 | . 33 22 3 Damage Taken 793 | . 332 261 200 Core 252 | . 50 64 138 Absorbed by Shields . | . . . . Redirected to Shielding 2 | . . 2 . Regen/Repaired (Parts) 83 | . 83 . . Core Remaining (%) 100 | 100 . . . Volleys Fired 125 | . 82 42 1 Largest 2 | . 2 2 2 Hottest 40 | . 40 40 40 Shots Fired 236 | . 159 75 2 Gun 223 | . 155 66 2 Cannon . | . . . . Launcher 13 | . 4 9 . Special . | . . . . Kinetic 223 | . 155 66 2 Thermal . | . . . . Explosive 13 | . 4 9 . Electromagnetic . | . . . . Robot Hit Streak 8 | . 8 5 . Robot Miss Streak 4 | . 4 3 3 Penetration Max . | . . . . Secondary Targets 4 | . 2 2 . Max Gunslinging Chain 1 | . 1 1 . Shots Hit Robots 123 | . 87 36 . Core Hits 64 | . 41 23 . Critical Kills . | . . . . Critical Parts Destroyed . | . . . . Critical Strikes . | . . . . Melee Attacks . | . . . . Impact . | . . . . Slashing . | . . . . Piercing . | . . . . Sneak Attacks . | . . . . Combat Hostiles . | . . . . Follow-up Attacks . | . . . . Damage Inflicted 1641 | . 1166 475 . Guns 1589 | . 1114 475 . Cannons . | . . . . Explosions 49 | . 49 . . Melee . | . . . . Ramming 3 | . 3 . . Kinetic 1589 | . 1114 475 . Thermal . | . . . . Explosive 49 | . 49 . . Electromagnetic . | . . . . Impact . | . . . . Slashing . | . . . . Piercing . | . . . . Highest Corruption . | . . . . Average Corruption . | . . . . Corruption Purged . | . . . . Corruption Blocked . | . . . . Overload Shots . | . . . . Overflow Damage . | . . . . Projectiles . | . . . . Explosions . | . . . . Melee . | . . . . Knockbacks . | . . . . Impact . | . . . . Kinetic . | . . . . Secondary . | . . . . Self-Inflicted Damage 17 | . . 17 . Shots 1 | . . 1 . Rammed 1 | . 1 . . Targets Rammed 1 | . 1 . . Kicked . | . . . . Crushed . | . . . . Highest Temperature 17 | . 3 17 . Average Temperature 6 | . 2 9 . Received Heat Transfer 225 | . 96 120 9 Siege Activations . | . . . . Martial Activations . | . . . . Shielding Activations . | . . . . Robots Disrupted . | . . . . Combat Hostiles . | . . . . Robots Corrupted . | . . . . Combat Hostiles . | . . . . Parts Fried . | . . . . Impact Corruptions . | . . . . Robots Melted . | . . . . Combat Hostiles . | . . . . Parts Melted . | . . . . Heat Transferred . | . . . . Parts Sabotaged . | . . . . Parts Stolen . | . . . . Parts Stripped . | . . . . Power Chain Reactions . | . . . . Alert | -11 -10 -10 -10 ------- Run | Yrd Mat Min Sub Maximum Alert Level . | . . . . Low Security (%) 100 | 100 100 100 . Level 1 . | . . . . Level 2 . | . . . . Level 3 . | . . . . Level 4 . | . . . . Level 5 . | . . . . High Security . | . . . . Max Security . | . . . . Peak Influence 145 | . 145 145 . Initial 39 | . . 39 . Average 59 | . 84 44 . Influence Increases 813 | . 452 361 . Destroy 0b10 Robot/C 420 | . 260 160 . Destroy 0b10 Robot/NC 100 | . 70 30 . Destroy Leader 76 | . 56 20 . Successful Hack 7 | . 7 . . Disable Machine 165 | . 30 135 . Destroy Structure 45 | . 29 16 . Influence Decreases 813 | . 351 388 74 Entered New Map 101 | . . 62 39 Time Decay 702 | . 351 316 35 Lost Part 10 | . . 10 . Squads Dispatched 1 | . 1 . . Investigation 1 | . 1 . . Extermination . | . . . . Reinforcement . | . . . . Assault . | . . . . Garrison . | . . . . Intercept . | . . . . Searches Triggered . | . . . . Construction Impeded . | . . . . Haulers Reinforced . | . . . . Active Scanning Responses . | . . . . Cargo Convoy Interrupts . | . . . . Stealth | -11 -10 -10 -10 --------- Run | Yrd Mat Min Sub Distress Signals 2 | . 1 1 . Communications Jammed . | . . . . Distress Signals . | . . . . Times Spotted 38 | . 24 8 6 Peak Tracking Total 4 | . 4 3 1 Tactical Retreats . | . . . . Traps | -11 -10 -10 -10 ------- Run | Yrd Mat Min Sub Traps Triggered 2 | . . . 2 Indirectly . | . . . . Trap Hack Attempts . | . . . . Triggered . | . . . . Disarmed . | . . . . Reprogrammed . | . . . . Reused . | . . . . Traps Extracted . | . . . . Installed . | . . . . Triggered . | . . . . Machines | -11 -10 -10 -10 ---------- Run | Yrd Mat Min Sub Machines Disabled 12 | . 3 9 . Max in Single Turn 2 | . 1 2 . Machines Repaired . | . . . . Machines Dismantled . | . . . . Machines Sabotaged . | . . . . Overloaded Fab Kills . | . . . . Hacking | -11 -10 -10 -10 --------- Run | Yrd Mat Min Sub Machines Accessed 2 | . 2 . . Terminals . | . . . . Fabricators . | . . . . Repair Stations 1 | . 1 . . Recycling Units 1 | . 1 . . Scanalyzers . | . . . . Garrison Access . | . . . . Total Hacks 5 | . 5 . . Successful 5 | . 5 . . Failed . | . . . . Catastrophic . | . . . . Database Lockouts . | . . . . Manual 1 | . 1 . . Terminals . | . . . . Fabricators . | . . . . Repair Stations 3 | . 3 . . Recycling Units 2 | . 2 . . Scanalyzers . | . . . . Garrison Access . | . . . . Terminal Hacks . | . . . . Fabricator Hacks . | . . . . Repair Station Hacks 3 | . 3 . . Scan Component 2 | . 2 . . Repair 1 | . 1 . . Recycling Unit Hacks 2 | . 2 . . Retrieve Matter 1 | . 1 . . Retrieve Components 1 | . 1 . . Scanalyzer . | . . . . Garrison Access Hacks . | . . . . Unauthorized Hacks . | . . . . Terminals . | . . . . Fabricators . | . . . . Repair Stations . | . . . . Recycling Units . | . . . . Scanalyzers . | . . . . Garrison Access . | . . . . Data Cores Recovered . | . . . . Used . | . . . . Hacking Detections 2 | . 2 . . Full Trace Events 2 | . 2 . . Feedback Events . | . . . . Feedback Blocked . | . . . . Robot Schematics Acquired . | . . . . Robots Built . | . . . . Authchips . | . . . . Time . | . . . . Total Robot Build Rating . | . . . . Part Schematics Acquired . | . . . . Parts Built . | . . . . Authchips . | . . . . Time . | . . . . Total Part Build Rating . | . . . . Part Studies Acquired . | . . . . Parts Repaired 1 | . 1 . . Time 26 | . 26 . . Parts Recycled . | . . . . Recycled Matter . | . . . . Retrieved Matter . | . . . . Retrieved Components . | . . . . Parts Scanalyzed . | . . . . Part Schematics Acquired . | . . . . Parts Damaged . | . . . . Bothacking | -11 -10 -10 -10 ------------ Run | Yrd Mat Min Sub Used RIF Installer . | . . . . Robots Hacked . | . . . . Non-combat . | . . . . Combat . | . . . . Robot Hacks Applied . | . . . . Relay Couplers Released . | . . . . Fabnet Peak Effective % . | . . . . Robots Rewired . | . . . . Allies Hacked . | . . . . Hacks Repelled . | . . . . Allies | -11 -10 -10 -10 -------- Run | Yrd Mat Min Sub Total Allies . | . . . . Largest Group . | . . . . Highest-Rated Group . | . . . . Highest-Rated Ally . | . . . . Total Orders . | . . . . Ally Attacks . | . . . . Total Damage . | . . . . Kills . | . . . . Allies Corrupted . | . . . . Allies Melted . | . . . . Intel | -11 -10 -10 -10 ------- Run | Yrd Mat Min Sub Active Infowar (turns) 668 | . . 582 86 Seismic 668 | . . 582 86 Robot Analysis Total . | . . . . Derelict Logs Recovered 3 | . . 2 1 Drone Launches . | . . . . Drone Recoveries . | . . . . Exploration | -11 -10 -10 -10 ------------- Run | Yrd Mat Min Sub Turns Passed 2634 | 120 1061 1350 103 Spaces Moved 1191 | 69 401 640 81 Core 5 | 5 . . . Treads 502 | 64 401 37 . Legs . | . . . . Wheels 684 | . . 603 81 Hover . | . . . . Flight . | . . . . Fastest Speed 50 | 50 160 115 115 Average Speed 146 | 154 188 122 118 Slowest Speed 240 | 160 240 240 145 Overloaded Moves . | . . . . Propulsion Burnouts . | . . . . Robots Hopped . | . . . . Potential Cave-ins . | . . . . Cave-ins Triggered . | . . . . Exploration Rate (%) 36 | 4 39 97 7 Regions Visited 3 Branch Regions 2 Pre-discovered Areas . | . . . . Known Exits Taken 1 | . . 1 . Unknown Exits Taken 2 | 1 1 . . Scrap Searched 1 | . . 1 . Spaces Dug . | . . . . Terrain Destroyed 38 | . 22 16 . Melee . | . . . . Projectile . | . . . . AOE 38 | . 22 16 . Terrain Rammed . | . . . . Walls Destroyed . | . . . . Machines Disabled . | . . . . Actions | -11 -10 -10 -10 --------- Run | Yrd Mat Min Sub Total 1836 | 79 542 1129 86 Wait 470 | . 36 431 3 Move 1188 | 68 400 639 81 Hop . | . . . . Pick Up 20 | 4 9 6 1 Fast Attach 11 | 6 3 2 . Attach 1 | . . 1 . Detach . | . . . . Swap 16 | 1 9 6 . Drop 4 | . 2 2 . Fire 125 | . 82 42 1 Melee . | . . . . Ram . | . . . . Kick . | . . . . Crush 1 | . 1 . . Escape Stasis . | . . . . Rewire . | . . . . Trap . | . . . . Miscellaneous . | . . . . Route ------- -11/Scrapyard -10/Materials -10/Mines (discovered 3 exits: [*Mat x2] / *Sub) -10/Subcaves History --------- Turn | Location | Event 15 | -11/Scrapyard | Discovered new exit (range 15) 121 | -11/Scrapyard | Entered Materials 308 | -10/Materials | Build established: Mutant 703 | -10/Materials | Discovered new exit (range 13) 1113 | -10/Materials | Repaired Assault Rifle 1182 | -10/Materials | Entered Mines 1263 | -10/Mines | Learned Materials trap positions 1295 | -10/Mines | Discovered new exit (range 5) 1419 | -10/Mines | Discovered new exit (range 10) 1508 | -10/Mines | Excavation squad dispatched 1508 | -10/Mines | A large section of the Mines collapsed 1758 | -10/Mines | Excavation squad dispatched 2006 | -10/Mines | Identified exit to Subcaves 2532 | -10/Mines | Entered Subcaves 2533 | -10/Subcaves | Approached by a straggling Scientist 2589 | -10/Subcaves | Shifting Twisted Machinery released Flamer 2610 | -10/Subcaves | Core integrity fell below 50% 2612 | -10/Subcaves | Shifting Twisted Machinery released Sub. Beam Cannon 2631 | -10/Subcaves | Ambushed by swarm of Subdwellers 2633 | -10/Subcaves | Core integrity fell below 20% 2635 | -10/Subcaves | Destroyed by 0E-5DD(R) with Subdweller Machine Gun Last Messages --------------- 02609_ Triggered Shrapnel Trap. 02609_ An expanding cloud of shrapnel blasts out in all directions. Sub. Beam Cannon falls loose from the Twisted Machinery. 02618_ Triggered Shrapnel Trap. 02618_ An expanding cloud of shrapnel blasts out in all directions. 02618_ Com. Wheel destroyed. 02618_ Seismic Detector destroyed. A mess of Twisted Machinery falls from the cavern ceiling. YA-HJF(R) comes tumbling into view. 02631_ 3H-F1E(h): "The Subs are coming!" 02632_ HV Slug penetrates YA-HJF(R). 3I-6DN(c): "I think it's somewhere west of here" 02635_ 3D-0UG(R) emerges from the Twisted Machinery. 02635_ HV-QNT(R) emerges from the Twisted Machinery. Map ----- +----------------------------------------------------+ | ?????????????### #?????? #???????????????? | | ?????????????# #?????? ##???????????????? | | ?????????????## ##??????##????????????????? | | ??????????????# ##?????????????????????????? | | ??????????????# #??????????????????????????? | | ??????????????## #??????????????????????????? | | ???????????????# "#??????????????????????????? | | ???????????????# |#####?""]?#????????????????? | | ??????????????## # "##"" ##???????????????? | | ?????????????## """"" ##??????????????? | | ?????????????# # "#""? #??????????????? | | ?????????????## " ;"#?? ???????????????? | | ??????????????# ;#?? ????????????????? | | ??????????????## #" ##?" ##???????????????? | | ??????????????# # g #? #???????????????? | | ??????????????# ^### #????????????????? | | ??????????????# " ;; ##???????????????? | | ??????????????# ### #???????????????? | | ??????????????## ?#" ; ##???????????????? | | ??????????????# ?#" ; ##???????????????? | | ????????????? ?#"" ; ##??????????????? | | ???????????? ?###; #??????????????? | | ??????????? ? #??## c #??????????????? | | ?????????? ?? #??# ### #??????????????? | | ????????? ## ??##??# h ##??#??????????????? | | ????????? #?# ???????## @R#?????????????????? | | ????????????? ????????# # RR#??????????????? | | ?????????????????????# RRR" ##??????????????? | | ?????????????????????# % #"##???????????????? | | ?????????????????????## ####????????????????? | | ??????????????????????# ???????????????????? | | ??????????????????????# ???????????????????? | | ?????????????????????? ???????????????????? | | ?????????????????????? ???????????????????? | | ????????????????????? ???????????????????? | | ????????????????????? ???????????????????? | | ???????????????????? ## ???????????????????? | | ???????????????????? ?### ???????????????????? | | ??????????????????? ?????#???????????????????? | | ??????????????????? ?????????????????????????? | | ?????????????????????????????????????????????? | | ?????????????????????????????????????????????? | | ?????????????????????????????????????????????? | | ?????????????????????????????????????????????? | | ?????????????????????????????????????????????? | | ?????????????????????????????????????????????? | | ?????????????????????????????????????????????? | | ?????????????????????????????????????????????? | | ?????????????????????????????????????????????? | | ?????????????????????????????????????????????? | +----------------------------------------------------+ Best States ------------- Heat Dissipation 35 Energy Generation 10 Energy Capacity 250 Matter Stores 400 Matter Capacity 400 Sight Range 16 Terrain Scan Density 10 Core Shielding 20 Evasion (%) 40 Recoil Reduction 2 Item Schematics ----------------- None Robot Schematics ------------------ None Fabricated ------------ Nothing Repaired ---------- Assault Rifle | 17% | -10/Materials Studied --------- None Alien Tech Used ----------------- None Achievements -------------- Oops Part-time Mechanic Challenges ------------ None Game ------ Seed DecoyThrowingScythe Manual? 0 Play Time 00:29:44 Cumulative 1.0 hours Start 2025.12.06 @ 19:06:13 End 2025.12.06 @ 19:34:03 Sessions 1 Manual Loads 0 Difficulty Rogue Special Mode None Game No. 2 Rogue 2 Adventurer 0 Explorer 0 Win Type - Total 0 Types 0/0/0/0/0/0/0/0/0/0 Lore% 0 Gallery% 2 Achievement% 5 Wizard Run 0 Options --------- Layout 1 ASCII 0 Keyboard 0 Movement Numpad Keybinds 0 Fullscreen 1 Font 32/SmallcapsGlow Map View 50x35 Zoom Use 0% Tactical HUD 1 Map Filters NONE Filters NONE Steam 1 RUN: 9ca2a1c5-0ff9-4b77-a6b0-85fa571a5675